fUST/lending_fUST_20240825
["ID","MTS","AMOUNT","RATE_DAILY","PERIOD"]
[335859321,1724537438087,-499.76637688,0.00012886,2]
[335859323,1724537438098,-502.23753504,0.00012898,2]
[335859325,1724537438107,-8845.25511796,0.00012898,2]
[335859327,1724537438118,-393.28667388,0.00012934,2]
[335859329,1724537438130,-320.29915971,0.00012934,2]
[335859331,1724537438139,-493.14186708,0.00012971,2]
[335859333,1724537438149,-776.68392197,0.00012971,2]
[335859336,1724537438162,-292.70870654,0.00012971,2]
[335859338,1724537438172,-404.38845476,0.00012971,2]
[335859340,1724537438182,-365.55978458,0.00012971,2]
[335859342,1724537438191,-1046.23839131,0.00012985,2]
[335859344,1724537438202,-413.69776679,0.00012991,2]
[335859346,1724537438212,-308.77232842,0.00013051,2]
[335859348,1724537438222,-5720.57521366,0.00013181,2]
[335859350,1724537438232,-420.0,0.00013349,2]
[335859352,1724537438242,-420.0,0.00013378,2]
[335859354,1724537438251,-2000.0,0.00013459,2]
[335859356,1724537438261,-40882.08150695,0.00013487,2]
[335859360,1724537438290,-1029.19523664,0.00013487,2]
[335859479,1724537440012,-74061.11916641,0.00013487,2]
[335859480,1724537440022,-1118.78998496,0.00013488,2]
[335859481,1724537440031,-495.40667807,0.00013496,2]
[335859483,1724537440041,-695.14803561,0.00013496,2]
[335859485,1724537440050,-8307.75344232,0.00013497,2]
[335859488,1724537440065,-9298.99539518,0.00013497,2]
[335859506,1724537442933,-37552.16511755,0.00013497,2]
[335859507,1724537442946,-550.80000001,0.00013497,2]
[335859508,1724537442958,-882.96114551,0.00013497,2]
[335859520,1724537445985,-495.40667807,0.00013477,2]
[335859521,1724537445995,-32295.32489943,0.00013497,2]
[335859522,1724537446005,-1118.78998496,0.00013516,2]
[335859523,1724537446015,-1118.78998496,0.00013543,2]
[335859524,1724537446027,-1118.78998496,0.00013571,2]
[335859525,1724537446038,-13841.08476759,0.00013588,2]
[335859537,1724538204108,9664.212107,0.00011999,2]
[335859538,1724538249317,1337.2358243,0.0001211,4]
[335859540,1724538266304,1330.0,0.0001211,2]
[335859567,1724538613223,576.91,0.00010959,2]
[335859596,1724538631892,-163.745499,0.00012192,2]
[335859597,1724538631903,-163.745499,0.00012235,2]
[335859598,1724538631914,-163.745499,0.00012277,2]
[335859599,1724538631927,-163.745499,0.00012319,2]
[335859600,1724538631939,-163.745499,0.00012362,2]
[335859601,1724538631951,-163.745499,0.00012404,2]
[335859602,1724538631962,-163.745499,0.00012446,2]
[335859603,1724538631973,-163.745499,0.00012489,2]
[335859604,1724538631983,-163.745499,0.00012531,2]
[335859605,1724538631994,-197.97631026,0.00012551,2]
[335859606,1724538632003,-163.745499,0.00012573,2]
[335859607,1724538632013,-163.745499,0.00012616,2]
[335859608,1724538632025,-163.745499,0.00012658,2]
[335859609,1724538632037,-163.745499,0.00012701,2]
[335859610,1724538632047,-163.745499,0.00012743,2]
[335859611,1724538632064,-163.745499,0.00012785,2]
[335859612,1724538632075,-163.745499,0.00012828,2]
[335859613,1724538632086,-429.771837,0.00012877,2]
[335859614,1724538632097,-719.90346352,0.00012898,2]
[335859615,1724538632109,-466.3443876,0.00012985,2]
[335859616,1724538632120,-695.14803561,0.00012985,2]
[335859617,1724538632130,-495.40667807,0.00012991,2]
[335859618,1724538632142,-300.0,0.00013141,2]
[335859619,1724538632153,-300.0,0.00013141,2]
[335859620,1724538632168,-153.0,0.00013141,2]
[335859621,1724538632179,-5720.57521366,0.00013297,2]
[335859622,1724538632189,-6261.47369192,0.00013443,2]
[335859623,1724538632200,-209.7598205,0.00013477,2]
[335859624,1724538632211,-447.515994,0.00013488,2]
[335859625,1724538632223,-247.71398014,0.00013496,2]
[335859626,1724538632235,-447.51599398,0.00013516,2]
[335859627,1724538632246,-15980.47610252,0.00013541,2]
[335859647,1724538638107,-481.15012294,0.00012934,2]
[335859650,1724538638118,-171166.97263295,0.00013541,2]
[335859652,1724538638128,-447.51599398,0.00013543,2]
[335859654,1724538638137,-447.51599398,0.00013571,2]
[335859656,1724538638147,-109889.721895,0.00013578,2]
[335859658,1724538638157,-91529.41087729,0.00013588,2]
[335859695,1724538640200,-209.7598205,0.00013333,2]
[335859696,1724538640210,-15075.8401795,0.00013588,2]
[335859767,1724538643062,-3284.47083821,0.00013588,2]
[335859768,1724538643072,-34267.69427934,0.00013588,2]
[335859779,1724538645962,-47669.9644269,0.00013588,2]
[335859780,1724538645972,-447.51599398,0.00013598,2]
[335859781,1724538645981,-923.22356208,0.00013598,2]
[335859782,1724538645997,-579.52653381,0.00013598,2]
[335859792,1724539010050,182.53,0.00027,120]
[335859806,1724539702010,22006.00212483,0.00011999,2]
[335859813,1724539800713,700.27571865,0.00011999,2]
[335859814,1724539827719,886.51060802,0.00011999,2]
[335859855,1724539832299,-408.283245,0.00012877,2]
[335859858,1724539832309,-289.43590531,0.00012898,2]
[335859860,1724539832320,-240.19126813,0.00013025,2]
[335859862,1724539832331,-5720.57521366,0.00013266,2]
[335859864,1724539832341,-1301.94908227,0.00013368,2]
[335859866,1724539832351,-300.0,0.00013372,2]
[335859868,1724539832363,-300.0,0.00013372,2]
[335859870,1724539832372,-7387.06267215,0.00013373,2]
[335859873,1724539832383,-7486.92532504,0.00013396,2]
[335859916,1724539832784,-342.01361781,0.00013396,2]
[335859999,1724539836065,405.23584646,0.00011999,2]
[335860009,1724539838303,-2388.32827735,0.00013396,2]
[335860010,1724539838313,-998.40255591,0.00013399,2]
[335860011,1724539838322,-150.112233,0.000134,2]
[335860012,1724539838331,-150.0,0.00013403,2]
[335860013,1724539838341,-10217.2672202,0.00013447,2]
[335860014,1724539838351,-159.0,0.00013473,2]
[335860015,1724539838360,-500.0,0.00013473,2]
[335860016,1724539838371,-500.0,0.00013473,2]
[335860017,1724539838382,-449.97377135,0.00013473,2]
[335860018,1724539838393,-500.0,0.00013473,2]
[335860019,1724539838403,-500.0,0.00013473,2]
[335860020,1724539838413,-500.0,0.00013473,2]
[335860022,1724539838424,-158.8,0.00013473,2]
[335860025,1724539838434,-293025.926542,0.00013488,2]
[335860026,1724539838444,-3128.61572283,0.0001349,2]
[335860027,1724539838455,-10217.2672202,0.00013497,2]
[335860028,1724539838467,-1143.0906791,0.00013497,2]
[335860029,1724539838477,-154.74467129,0.00013497,2]
[335860030,1724539838487,-154.98780454,0.00013497,2]
[335860031,1724539838498,-288.43492116,0.00013497,2]
[335860032,1724539838507,-396.82268192,0.00013498,2]
[335860033,1724539838516,-182.049459,0.00013498,2]
[335860034,1724539838525,-182.049459,0.00013498,2]
[335860035,1724539838534,-88888.0,0.00013498,2]
[335860036,1724539838543,-150.112233,0.000135,2]
[335860037,1724539838552,-150.112233,0.000135,2]
[335860038,1724539838562,-150.112233,0.000135,2]
[335860039,1724539838570,-150.112233,0.000135,2]
[335860040,1724539838579,-150.112233,0.000135,2]
[335860041,1724539838589,-150.112233,0.000135,2]
[335860042,1724539838599,-150.112233,0.000135,2]
[335860043,1724539838608,-150.112233,0.000135,2]
[335860044,1724539838618,-150.112233,0.000135,2]
[335860045,1724539838628,-10217.2672202,0.00013548,2]
[335860046,1724539838637,-500.0,0.00013573,2]
[335860047,1724539838646,-182.049459,0.00013578,2]
[335860048,1724539838656,-182.049459,0.00013578,2]
[335860049,1724539838666,-146512.963271,0.00013588,2]
[335860050,1724539838676,-146512.963271,0.0001359,2]
[335860051,1724539838685,-1614.23476324,0.00013596,2]
[335860052,1724539838694,-2129.03639097,0.00013596,2]
[335860053,1724539838704,-161.97769195,0.00013597,2]
[335860054,1724539838713,-3475.99730949,0.00013597,2]
[335860055,1724539838723,-2143.85143782,0.00013597,2]
[335860056,1724539838732,-265.47824187,0.00013597,2]
[335860057,1724539838742,-182.049459,0.00013598,2]
[335860058,1724539838752,-182.049459,0.00013598,2]
[335860059,1724539838761,-10217.2672202,0.00013598,2]
[335860060,1724539838771,-40000.0,0.00013598,2]
[335860061,1724539838780,-535.11790599,0.00013599,2]
[335860062,1724539838789,-1500.0,0.00013599,2]
[335860063,1724539838798,-346.46491659,0.00013599,2]
[335860064,1724539838808,-665.79988618,0.00013599,2]
[335860065,1724539838817,-500.0,0.00013599,2]
[335860066,1724539838826,-7212.7,0.000136,2]
[335860067,1724539838836,-150.112233,0.000136,2]
[335860068,1724539838847,-150.112233,0.000136,2]
[335860069,1724539838857,-150.112233,0.000136,2]
[335860070,1724539838867,-150.112233,0.000136,2]
[335860071,1724539838877,-409.2733729,0.000136,2]
[335860072,1724539838886,-150.112233,0.000136,2]
[335860073,1724539838896,-150.112233,0.000136,2]
[335860074,1724539838905,-150.112233,0.000136,2]
[335860075,1724539838915,-150.112233,0.000136,2]
[335860076,1724539838926,-150.112233,0.000136,2]
[335860077,1724539838938,-150.112233,0.000136,2]
[335860078,1724539838948,-150.112233,0.000136,2]
[335860079,1724539838959,-150.112233,0.000136,2]
[335860080,1724539838968,-500.0,0.00013673,2]
[335860081,1724539838977,-500.0,0.00013673,2]
[335860082,1724539838986,-504.78112766,0.00013673,2]
[335860083,1724539838995,-500.0,0.00013673,2]
[335860084,1724539839005,-500.0,0.00013673,2]
[335860085,1724539839014,-495.40667807,0.00013688,2]
[335860086,1724539839023,-602.18885266,0.00013688,2]
[335860087,1724539839032,-934.26607432,0.00013688,2]
[335860088,1724539839042,-2719.18126083,0.00013688,2]
[335860089,1724539839051,-521.61080417,0.00013688,2]
[335860090,1724539839060,-862.94176999,0.00013688,2]
[335860091,1724539839069,-155.0,0.0001369,2]
[335860092,1724539839079,-776.68392197,0.00013697,2]
[335860093,1724539839090,-154.74467129,0.00013697,2]
[335860094,1724539839104,-1194.06414847,0.00013697,2]
[335860095,1724539839114,-154.74467129,0.00013697,2]
[335860096,1724539839123,-182.43031359,0.00013697,2]
[335860097,1724539839133,-183.34752571,0.00013697,2]
[335860098,1724539839144,-254.41524224,0.00013697,2]
[335860099,1724539839154,-811.79481334,0.00013697,2]
[335860100,1724539839163,-7981.93265453,0.00013697,2]
[335860101,1724539839177,-661.1874634,0.00013698,2]
[335860102,1724539839187,-400.8377683,0.00013698,2]
[335860103,1724539839196,-358.39981128,0.00013698,2]
[335860104,1724539839205,-500.0,0.00013698,2]
[335860105,1724539839214,-661.1874634,0.00013698,2]
[335860106,1724539839223,-661.1874634,0.00013698,2]
[335860107,1724539839232,-661.1874634,0.00013698,2]
[335860108,1724539839241,-661.1874634,0.00013698,2]
[335860109,1724539839250,-661.1874634,0.00013698,2]
[335860110,1724539839260,-661.1874634,0.00013698,2]
[335860111,1724539839269,-315.79911202,0.00013698,2]
[335860112,1724539839279,-661.1874634,0.00013698,2]
[335860113,1724539839287,-500.0,0.00013698,2]
[335860114,1724539839297,-661.1874634,0.00013698,2]
[335860115,1724539839306,-661.1874634,0.00013698,2]
[335860116,1724539839315,-500.0,0.00013698,2]
[335860117,1724539839324,-661.1874634,0.00013698,2]
[335860118,1724539839333,-661.1874634,0.00013698,2]
[335860119,1724539839342,-661.1874634,0.00013698,2]
[335860120,1724539839351,-661.1874634,0.00013698,2]
[335860121,1724539839360,-661.1874634,0.00013698,2]
[335860122,1724539839369,-661.1874634,0.00013698,2]
[335860123,1724539839378,-661.1874634,0.00013698,2]
[335860124,1724539839387,-661.1874634,0.00013698,2]
[335860125,1724539839396,-661.1874634,0.00013698,2]
[335860126,1724539839405,-661.1874634,0.00013698,2]
[335860127,1724539839415,-661.1874634,0.00013698,2]
[335860128,1724539839426,-1324.87042409,0.00013698,2]
[335860129,1724539839435,-1324.87042409,0.00013698,2]
[335860130,1724539839444,-1324.87042409,0.00013698,2]
[335860131,1724539839453,-1324.87042409,0.00013698,2]
[335860132,1724539839462,-1324.87042409,0.00013698,2]
[335860133,1724539839471,-1324.87042409,0.00013698,2]
[335860134,1724539839483,-1324.87042409,0.00013698,2]
[335860135,1724539839492,-500.0,0.00013698,2]
[335860136,1724539839503,-500.0,0.00013698,2]
[335860137,1724539839512,-500.0,0.00013698,2]
[335860138,1724539839521,-500.0,0.00013698,2]
[335860139,1724539839530,-500.00000001,0.00013698,2]
[335860140,1724539839539,-620.0,0.00013698,2]
[335860141,1724539839549,-500.0,0.00013698,2]
[335860142,1724539839558,-616.21891281,0.00013698,2]
[335860143,1724539839568,-500.0,0.00013698,2]
[335860144,1724539839577,-155.12815248,0.00013698,2]
[335860145,1724539839587,-500.0,0.00013698,2]
[335860146,1724539839596,-506.99417169,0.00013698,2]
[335860147,1724539839605,-500.0,0.00013698,2]
[335860148,1724539839614,-500.0,0.00013698,2]
[335860149,1724539839624,-500.0,0.00013698,2]
[335860150,1724539839634,-500.0,0.00013698,2]
[335860151,1724539839644,-500.0,0.00013698,2]
[335860152,1724539839653,-500.0,0.00013698,2]
[335860153,1724539839663,-500.0,0.00013698,2]
[335860154,1724539839673,-500.0,0.00013698,2]
[335860155,1724539839682,-154.74467129,0.00013698,2]
[335860156,1724539839691,-500.0,0.00013698,2]
[335860157,1724539839701,-500.0,0.00013698,2]
[335860158,1724539839710,-500.0,0.00013698,2]
[335860159,1724539839719,-500.0,0.00013698,2]
[335860160,1724539839729,-229.23041765,0.00013698,2]
[335860161,1724539839738,-851.08,0.00013698,2]
[335860162,1724539839748,-500.0,0.00013698,2]
[335860163,1724539839757,-500.0,0.00013698,2]
[335860164,1724539839766,-601.42,0.00013698,2]
[335860165,1724539839778,-500.0,0.00013698,2]
[335860166,1724539839787,-513.24810199,0.00013698,2]
[335860167,1724539839798,-500.0,0.00013698,2]
[335860168,1724539839808,-500.0,0.00013698,2]
[335860169,1724539839820,-500.0,0.00013698,2]
[335860170,1724539839833,-589.07,0.00013698,2]
[335860171,1724539839845,-500.0,0.00013698,2]
[335860172,1724539839856,-500.0,0.00013698,2]
[335860173,1724539839867,-695.89,0.00013698,2]
[335860175,1724539839876,-500.0,0.00013698,2]
[335860177,1724539839885,-500.0,0.00013698,2]
[335860178,1724539839894,-500.0,0.00013698,2]
[335860179,1724539839903,-500.0,0.00013698,2]
[335860180,1724539839912,-500.0,0.00013698,2]
[335860181,1724539839923,-500.0,0.00013698,2]
[335860182,1724539839932,-500.0,0.00013698,2]
[335860183,1724539839941,-500.0,0.00013698,2]
[335860184,1724539839950,-500.0,0.00013698,2]
[335860185,1724539839960,-500.0,0.00013698,2]
[335860186,1724539839970,-500.0,0.00013698,2]
[335860187,1724539839981,-358.58372772,0.00013698,2]
[335860188,1724539839991,-500.0,0.00013698,2]
[335860189,1724539840000,-500.0,0.00013698,2]
[335860190,1724539840009,-500.0,0.00013698,2]
[335860191,1724539840019,-500.0,0.00013698,2]
[335860192,1724539840028,-506.58545164,0.00013698,2]
[335860193,1724539840038,-500.0,0.00013698,2]
[335860194,1724539840047,-500.0,0.00013698,2]
[335860195,1724539840056,-500.0,0.00013698,2]
[335860196,1724539840065,-500.0,0.00013698,2]
[335860197,1724539840074,-500.0,0.00013698,2]
[335860198,1724539840084,-202.44085024,0.00013698,2]
[335860199,1724539840096,-500.0,0.00013698,2]
[335860200,1724539840105,-500.0,0.00013698,2]
[335860201,1724539840114,-500.0,0.00013698,2]
[335860202,1724539840123,-500.0,0.00013698,2]
[335860203,1724539840132,-910.01,0.00013698,2]
[335860204,1724539840142,-500.0,0.00013698,2]
[335860205,1724539840153,-500.0,0.00013698,2]
[335860206,1724539840163,-500.0,0.00013698,2]
[335860207,1724539840174,-566.28296667,0.00013698,2]
[335860208,1724539840187,-500.0,0.00013698,2]
[335860209,1724539840198,-500.0,0.00013698,2]
[335860210,1724539840208,-500.0,0.00013698,2]
[335860211,1724539840222,-500.0,0.00013698,2]
[335860212,1724539840232,-500.0,0.00013698,2]
[335860213,1724539840242,-500.0,0.00013698,2]
[335860214,1724539840253,-500.0,0.00013698,2]
[335860216,1724539840265,-500.0,0.00013698,2]
[335860218,1724539840274,-500.0,0.00013698,2]
[335860220,1724539840284,-500.0,0.00013698,2]
[335860221,1724539840293,-500.0,0.00013698,2]
[335860222,1724539840303,-500.0,0.00013698,2]
[335860223,1724539840312,-500.0,0.00013698,2]
[335860224,1724539840321,-544.56,0.00013698,2]
[335860225,1724539840330,-500.0,0.00013698,2]
[335860226,1724539840339,-500.0,0.00013698,2]
[335860227,1724539840349,-500.0,0.00013698,2]
[335860228,1724539840358,-500.0,0.00013698,2]
[335860229,1724539840367,-500.0,0.00013698,2]
[335860230,1724539840377,-500.0,0.00013698,2]
[335860231,1724539840386,-500.0,0.00013698,2]
[335860232,1724539840395,-500.0,0.00013698,2]
[335860233,1724539840405,-500.0,0.00013698,2]
[335860234,1724539840414,-500.0,0.00013698,2]
[335860235,1724539840425,-500.0,0.00013698,2]
[335860236,1724539840434,-500.0,0.00013698,2]
[335860237,1724539840443,-544.39779337,0.00013698,2]
[335860238,1724539840452,-500.0,0.00013698,2]
[335860239,1724539840461,-500.0,0.00013698,2]
[335860240,1724539840471,-503.11997067,0.00013698,2]
[335860241,1724539840480,-501.43606439,0.00013698,2]
[335860242,1724539840489,-500.0,0.00013698,2]
[335860243,1724539840498,-500.0,0.00013698,2]
[335860244,1724539840507,-500.0,0.00013698,2]
[335860245,1724539840517,-500.0,0.00013698,2]
[335860246,1724539840526,-500.0,0.00013698,2]
[335860247,1724539840535,-500.0,0.00013698,2]
[335860248,1724539840544,-500.0,0.00013698,2]
[335860249,1724539840553,-500.0,0.00013698,2]
[335860250,1724539840562,-491.3994155,0.00013698,2]
[335860251,1724539840572,-500.0,0.00013698,2]
[335860252,1724539840581,-500.0,0.00013698,2]
[335860253,1724539840590,-500.0,0.00013698,2]
[335860254,1724539840600,-500.0,0.00013698,2]
[335860255,1724539840611,-500.0,0.00013698,2]
[335860256,1724539840621,-500.0,0.00013698,2]
[335860257,1724539840631,-500.0,0.00013698,2]
[335860258,1724539840640,-500.0,0.00013698,2]
[335860259,1724539840650,-500.0,0.00013698,2]
[335860260,1724539840660,-500.0,0.00013698,2]
[335860261,1724539840669,-500.0,0.00013698,2]
[335860262,1724539840678,-500.0,0.00013698,2]
[335860263,1724539840688,-500.0,0.00013698,2]
[335860264,1724539840699,-500.0,0.00013698,2]
[335860265,1724539840708,-500.0,0.00013698,2]
[335860266,1724539840718,-500.0,0.00013698,2]
[335860267,1724539840728,-500.0,0.00013698,2]
[335860268,1724539840738,-500.0,0.00013698,2]
[335860269,1724539840747,-821.62,0.00013698,2]
[335860270,1724539840757,-522.36578076,0.00013698,2]
[335860271,1724539840766,-500.0,0.00013698,2]
[335860272,1724539840775,-500.68041564,0.00013698,2]
[335860273,1724539840785,-500.0,0.00013698,2]
[335860274,1724539840794,-500.0,0.00013698,2]
[335860275,1724539840804,-536.51,0.00013698,2]
[335860276,1724539840813,-500.0,0.00013698,2]
[335860277,1724539840823,-597.58,0.00013698,2]
[335860278,1724539840833,-500.0,0.00013698,2]
[335860279,1724539840844,-500.0,0.00013698,2]
[335860280,1724539840855,-193.80537047,0.00013698,2]
[335860281,1724539840866,-500.0,0.00013698,2]
[335860282,1724539840875,-500.0,0.00013698,2]
[335860283,1724539840884,-500.0,0.00013698,2]
[335860284,1724539840895,-500.0,0.00013698,2]
[335860285,1724539840906,-500.0,0.00013698,2]
[335860286,1724539840919,-500.0,0.00013698,2]
[335860287,1724539840931,-500.0,0.00013698,2]
[335860288,1724539840940,-500.0,0.00013698,2]
[335860289,1724539840950,-500.0,0.00013698,2]
[335860290,1724539840960,-500.0,0.00013698,2]
[335860291,1724539840970,-500.0,0.00013698,2]
[335860292,1724539840980,-527.63769833,0.00013698,2]
[335860293,1724539840989,-500.0,0.00013698,2]
[335860294,1724539840998,-528.21,0.00013698,2]
[335860295,1724539841007,-439.72958031,0.00013698,2]
[335860296,1724539841017,-533.39,0.00013698,2]
[335860297,1724539841028,-500.0,0.00013698,2]
[335860298,1724539841038,-500.0,0.00013698,2]
[335860299,1724539841050,-500.0,0.00013698,2]
[335860300,1724539841062,-500.0,0.00013698,2]
[335860301,1724539841071,-500.0,0.00013698,2]
[335860302,1724539841080,-500.0,0.00013698,2]
[335860303,1724539841089,-500.82306051,0.00013698,2]
[335860304,1724539841103,-500.0,0.00013698,2]
[335860305,1724539841112,-500.0,0.00013698,2]
[335860306,1724539841121,-500.0,0.00013698,2]
[335860307,1724539841130,-539.0,0.00013698,2]
[335860308,1724539841141,-500.0,0.00013698,2]
[335860309,1724539841150,-500.0,0.00013698,2]
[335860310,1724539841159,-500.0,0.00013698,2]
[335860311,1724539841170,-500.0,0.00013698,2]
[335860312,1724539841179,-442.44977797,0.00013698,2]
[335860313,1724539841188,-500.0,0.00013698,2]
[335860314,1724539841197,-500.0,0.00013698,2]
[335860315,1724539841207,-702.1,0.00013698,2]
[335860316,1724539841216,-500.0,0.00013698,2]
[335860317,1724539841225,-500.0,0.00013698,2]
[335860318,1724539841234,-500.0,0.00013698,2]
[335860319,1724539841243,-500.0,0.00013698,2]
[335860320,1724539841252,-500.0,0.00013698,2]
[335860321,1724539841261,-641.85,0.00013698,2]
[335860322,1724539841270,-500.0,0.00013698,2]
[335860323,1724539841280,-877.0,0.00013698,2]
[335860324,1724539841288,-500.0,0.00013698,2]
[335860325,1724539841297,-502.74548938,0.00013698,2]
[335860326,1724539841306,-500.0,0.00013698,2]
[335860327,1724539841315,-500.0,0.00013698,2]
[335860328,1724539841324,-500.0,0.00013698,2]
[335860329,1724539841333,-809.92,0.00013698,2]
[335860330,1724539841343,-500.0,0.00013698,2]
[335860331,1724539841352,-500.0,0.00013698,2]
[335860332,1724539841361,-500.0,0.00013698,2]
[335860333,1724539841370,-556.19,0.00013698,2]
[335860334,1724539841379,-646.54,0.00013698,2]
[335860335,1724539841388,-500.0,0.00013698,2]
[335860336,1724539841397,-500.0,0.00013698,2]
[335860337,1724539841407,-500.0,0.00013698,2]
[335860338,1724539841416,-500.0,0.00013698,2]
[335860339,1724539841428,-866.26,0.00013698,2]
[335860340,1724539841437,-500.0,0.00013698,2]
[335860341,1724539841446,-331.58030529,0.00013698,2]
[335860342,1724539841455,-500.0,0.00013698,2]
[335860343,1724539841464,-500.0,0.00013698,2]
[335860344,1724539841474,-800.24,0.00013698,2]
[335860345,1724539841483,-500.0,0.00013698,2]
[335860346,1724539841492,-502.79952749,0.00013698,2]
[335860347,1724539841501,-500.0,0.00013698,2]
[335860348,1724539841510,-500.0,0.00013698,2]
[335860349,1724539841519,-500.0,0.00013698,2]
[335860350,1724539841528,-500.0,0.00013698,2]
[335860351,1724539841537,-500.0,0.00013698,2]
[335860352,1724539841547,-500.0,0.00013698,2]
[335860353,1724539841556,-500.0,0.00013698,2]
[335860354,1724539841566,-500.0,0.00013698,2]
[335860355,1724539841575,-200.15,0.00013698,2]
[335860356,1724539841584,-500.0,0.00013698,2]
[335860357,1724539841593,-765.31,0.00013698,2]
[335860358,1724539841603,-500.0,0.00013698,2]
[335860359,1724539841612,-502.12274204,0.00013698,2]
[335860360,1724539841622,-500.0,0.00013698,2]
[335860361,1724539841632,-502.79844456,0.00013698,2]
[335860362,1724539841641,-501.48307279,0.00013698,2]
[335860363,1724539841651,-862.33,0.00013698,2]
[335860364,1724539841660,-500.0,0.00013698,2]
[335860365,1724539841669,-787.05,0.00013698,2]
[335860366,1724539841679,-500.0,0.00013698,2]
[335860367,1724539841689,-500.0,0.00013698,2]
[335860368,1724539841698,-500.0,0.00013698,2]
[335860369,1724539841707,-500.0,0.00013698,2]
[335860370,1724539841717,-547.22665791,0.00013698,2]
[335860371,1724539841726,-502.2181315,0.00013698,2]
[335860372,1724539841735,-650.17,0.00013698,2]
[335860373,1724539841744,-500.0,0.00013698,2]
[335860374,1724539841752,-500.0,0.00013698,2]
[335860375,1724539841762,-500.0,0.00013698,2]
[335860376,1724539841771,-619.99,0.00013698,2]
[335860377,1724539841780,-500.0,0.00013698,2]
[335860378,1724539841789,-500.0,0.00013698,2]
[335860379,1724539841799,-500.0,0.00013698,2]
[335860380,1724539841808,-500.0,0.00013698,2]
[335860381,1724539841817,-500.0,0.00013698,2]
[335860382,1724539841826,-603.96,0.00013698,2]
[335860383,1724539841835,-500.0,0.00013698,2]
[335860384,1724539841845,-524.29,0.00013698,2]
[335860385,1724539841854,-500.0,0.00013698,2]
[335860386,1724539841864,-500.0,0.00013698,2]
[335860387,1724539841874,-500.0,0.00013698,2]
[335860388,1724539841883,-500.0,0.00013698,2]
[335860389,1724539841893,-653.29,0.00013698,2]
[335860390,1724539841902,-598.15978282,0.00013698,2]
[335860391,1724539841911,-500.0,0.00013698,2]
[335860392,1724539841920,-500.0,0.00013698,2]
[335860393,1724539841930,-601.53830752,0.00013698,2]
[335860394,1724539841939,-664.55,0.00013698,2]
[335860395,1724539841948,-500.0,0.00013698,2]
[335860396,1724539841957,-652.42,0.00013698,2]
[335860397,1724539841967,-500.0,0.00013698,2]
[335860398,1724539841976,-585.51,0.00013698,2]
[335860399,1724539841985,-500.0,0.00013698,2]
[335860400,1724539841994,-500.0,0.00013698,2]
[335860401,1724539842004,-500.0,0.00013698,2]
[335860402,1724539842013,-707.4,0.00013698,2]
[335860403,1724539842023,-317.59539575,0.00013698,2]
[335860404,1724539842032,-500.0,0.00013698,2]
[335860405,1724539842042,-500.0,0.00013698,2]
[335860406,1724539842051,-503.90593166,0.00013698,2]
[335860407,1724539842062,-695.94,0.00013698,2]
[335860408,1724539842072,-663.27,0.00013698,2]
[335860409,1724539842081,-500.0,0.00013698,2]
[335860410,1724539842092,-500.0,0.00013698,2]
[335860411,1724539842104,-500.0,0.00013698,2]
[335860412,1724539842113,-500.0,0.00013698,2]
[335860413,1724539842306,-500.71268256,0.00013698,2]
[335860414,1724539842316,-889.94,0.00013698,2]
[335860415,1724539842325,-500.0,0.00013698,2]
[335860416,1724539842335,-520.07231296,0.00013698,2]
[335860417,1724539842345,-598.59,0.00013698,2]